bitfinex/quotes_ETHUSD_20240703
["timestamp","ask_amount","ask_price","bid_price","bid_amount"]
[1720041757818,3.73000958,3278.4,3278.3,0.04669144]
[1720041758234,3.73000958,3278.4,3278.0,3.05057]
[1720041758235,0.75990958,3278.1,3278.0,0.86]
[1720041758432,0.75990958,3277.9,3277.8,3.05075]
[1720041758632,0.75990958,3277.9,3277.8,3.91075]
[1720041759214,0.75990958,3278.1,3277.9,3.05073]
[1720041759411,0.75990958,3278.1,3278.0,0.86]
[1720041765563,0.75990958,3277.8,3277.6,3.0]
[1720041765719,0.75990958,3277.8,3277.2,0.2967178]
[1720041765720,0.75990958,3277.8,3277.7,0.86]
[1720041767961,3.21164924,3277.9,3277.7,0.86]
[1720041768161,3.1768,3277.9,3277.7,0.86]
[1720041768382,0.75990958,3277.8,3277.7,0.86]
[1720041769557,0.75990958,3277.8,3277.7,0.90087073]
[1720041770838,1.39576744,3277.8,3277.7,0.90087073]
[1720041771047,0.75990958,3277.8,3277.7,0.90087073]
[1720041771448,1.39576744,3277.8,3277.7,0.90087073]
[1720041772444,0.95378679,3277.9,3277.8,3.05082]
[1720041772668,0.63737631,3278.0,3277.9,3.05073]
[1720041772852,1.71369637,3278.1,3277.9,3.95150529]
[1720041773056,0.63737666,3278.0,3277.9,3.95150529]
[1720041773271,0.75990958,3278.1,3277.9,3.95150529]
[1720041773490,1.71633648,3278.1,3277.9,3.95150529]
[1720041773896,0.9564269,3278.0,3277.9,3.95150529]
[1720041774629,0.95690069,3278.0,3277.9,3.95150529]
[1720041775316,2.12327608,3278.0,3277.9,3.95150529]
[1720041775484,2.03577717,3278.1,3278.0,3.05064]
[1720041775684,4.15905349,3278.1,3278.0,3.09137155]
[1720041776374,2.8831859,3278.1,3278.0,3.09137155]
[1720041777286,4.47879968,3278.1,3278.0,3.09137155]
[1720041777487,4.4793818,3278.1,3278.0,3.09137155]
[1720041778613,2.8831859,3278.1,3278.0,3.09137155]
[1720041779111,2.8831859,3278.1,3278.0,0.04073155]
[1720041779868,3.36653292,3278.1,3278.0,0.04073155]
[1720041780076,5.7845369,3278.1,3278.0,0.04073155]
[1720041780394,7.73688931,3278.1,3278.0,0.04073155]
[1720041781393,7.150626,3278.1,3278.0,0.04073155]
[1720041782649,5.81938614,3278.1,3278.0,0.04073155]
[1720041782935,7.1157883,3278.1,3278.0,0.04073155]
[1720041783497,7.64406352,3278.1,3278.0,0.04073155]
[1720041785046,7.64406352,3278.1,3277.9,0.86]
[1720041785251,1.2432566,3278.1,3278.0,0.04064804]
[1720041785458,5.22617184,3278.1,3278.0,0.04064804]
[1720041785743,7.67779409,3278.1,3278.0,0.04064804]
[1720041785949,5.81828023,3278.1,3278.0,0.04064804]
[1720041786156,6.34655386,3278.1,3278.0,0.04064804]
[1720041786313,6.34656345,3278.1,3278.0,0.04064804]
[1720041786517,7.67783718,3278.1,3278.0,0.04064804]
[1720041789051,7.67779584,3278.1,3278.0,0.04064804]
[1720041789255,7.67779582,3278.1,3278.0,0.04064804]
[1720041792168,5.81828023,3278.1,3278.0,0.04064804]
[1720041792379,7.67778599,3278.1,3278.0,0.04064804]
[1720041793887,10.71888599,3278.1,3278.0,0.04064804]
[1720041794238,0.75990958,3277.7,3277.6,0.86]
[1720041794557,3.41157964,3277.7,3277.6,0.89793764]
[1720041794757,4.74281672,3277.7,3277.6,0.89793764]
[1720041794968,7.19443897,3277.7,3277.6,0.89793764]
[1720041795337,6.66630895,3277.7,3277.6,0.89793764]
[1720041795680,7.19463265,3277.7,3277.6,0.89793764]
[1720041797679,7.19463265,3277.7,3277.6,0.71285764]
[1720041798343,8.13801739,3277.7,3277.6,0.03793764]
[1720041798539,7.6097012,3277.7,3277.6,0.86]
[1720041798760,8.13802788,3277.7,3277.6,0.89670174]
[1720041799058,8.13802501,3277.7,3277.6,0.89670174]
[1720041799669,8.13802501,3277.7,3277.6,0.78736074]
[1720041799900,8.13802501,3277.7,3277.6,0.82283909]
[1720041801615,6.27831795,3277.7,3277.6,0.82283909]
[1720041801814,8.13803082,3277.7,3277.6,0.82283909]
[1720041801981,8.13802226,3277.7,3277.6,0.82283909]
[1720041803490,10.37755897,3277.7,3277.6,0.82283909]
[1720041804963,10.37829739,3277.7,3277.6,0.82283909]
[1720041805511,10.37829739,3277.7,3277.6,0.89547835]
[1720041806972,10.37829739,3277.7,3277.6,0.03547835]
[1720041807171,10.37829739,3277.7,3277.6,0.89547835]
[1720041807374,10.37829739,3277.7,3277.6,0.86]
[1720041807670,10.37829739,3277.7,3277.6,0.89556982]
[1720041808029,6.27831795,3277.7,3277.6,0.89556982]
[1720041808207,10.37817847,3277.7,3277.6,0.89556982]
[1720041810786,10.37817847,3277.7,3277.6,0.03556982]
[1720041810988,11.06272569,3277.7,3277.6,0.03556982]
[1720041811217,0.75990958,3277.2,3277.1,3.05143]
[1720041811399,4.80341852,3277.2,3277.1,3.91143]
[1720041811606,4.80341852,3277.2,3277.1,3.94702368]
[1720041811607,2.88331096,3277.2,3277.1,3.94702368]
[1720041811831,4.80347252,3277.2,3277.1,3.94702368]
[1720041812646,4.83832176,3277.2,3277.1,3.08702368]
[1720041812936,4.83832176,3277.2,3277.1,3.94702368]
[1720041812937,7.28994401,3277.2,3277.1,3.94702368]
[1720041814329,7.28987385,3277.2,3277.1,3.94702368]
[1720041815259,7.28987385,3277.2,3277.1,3.08702368]
[1720041815547,7.28987385,3277.2,3277.1,3.94702368]
[1720041817415,7.28939511,3277.2,3277.1,3.94702368]
[1720041818340,5.36978245,3277.2,3277.1,3.94702368]
[1720041818740,5.36978245,3277.2,3277.1,3.08702368]
[1720041819045,5.36978245,3277.2,3277.1,3.94702368]
[1720041823828,5.33493321,3277.2,3277.1,3.94702368]
[1720041824158,5.36978245,3277.2,3277.1,3.94702368]
[1720041825314,7.29042285,3277.2,3277.1,3.94702368]
[1720041825528,5.36978245,3277.2,3277.1,3.94702368]
[1720041825941,7.29042285,3277.2,3277.1,3.94702368]
[1720041826314,5.36978245,3277.2,3277.1,3.94702368]
[1720041826515,5.33493321,3277.2,3277.1,3.94702368]
[1720041826757,4.57502363,3277.2,3277.1,10.03099368]
[1720041827056,5.3960673,3277.2,3277.1,6.99849368]
[1720041827360,5.43091654,3277.2,3277.1,6.99849368]
[1720041827968,2.12340138,3277.2,3277.1,14.13511305]
[1720041828168,1.2806337,3277.2,3277.1,13.82511305]
[1720041828501,1.28068631,3277.3,3277.2,6.10276]
[1720041828787,2.36060229,3277.4,3277.3,12.23917]
[1720041828985,1.60069271,3277.4,3277.3,14.56765]
[1720041829277,1.60069271,3277.4,3277.3,14.60330335]
[1720041829946,0.75990958,3277.6,3277.5,6.1022]
[1720041830179,0.75990958,3277.6,3277.5,6.9622]
[1720041830394,0.75990958,3277.6,3277.5,6.99785335]
[1720041830742,1.92106718,3277.7,3277.6,6.10202]
[1720041831019,1.60109367,3277.7,3277.6,6.09161]
[1720041831223,1.60109367,3277.7,3277.6,6.12726335]
[1720041832172,1.60109367,3277.7,3277.6,9.17827335]
[1720041832471,1.60109367,3277.7,3277.6,10.63323492]
[1720041832982,0.75990958,3278.1,3278.0,3.05064]
[1720041833382,3.17992838,3278.1,3278.0,3.08623767]
[1720041835107,5.10065533,3278.1,3278.0,3.08623767]
[1720041836513,5.10033555,3278.1,3278.0,3.08623767]
[1720041836909,3.17992838,3278.1,3278.0,3.08623767]
[1720041837211,7.22350825,3278.1,3278.0,3.08623767]
[1720041837921,7.22350825,3278.1,3278.0,3.94623767]
[1720041838291,5.30315932,3278.1,3278.0,3.94623767]
[1720041838595,7.22350825,3278.1,3278.0,3.08623767]
[1720041838801,7.22350825,3278.1,3278.0,3.94623767]
[1720041839497,7.22306581,3278.1,3278.0,3.94623767]
[1720041839717,7.22306581,3278.1,3278.0,6.99687767]
[1720041839906,2.88314052,3278.1,3278.0,6.99687767]
[1720041840518,5.29768194,3278.1,3278.0,6.99687767]
[1720041841029,2.88314052,3278.1,3278.0,6.99687767]
[1720041843229,2.12323094,3278.1,3278.0,6.99687767]
[1720041843537,4.48224048,3278.1,3278.0,10.73436544]
[1720041843725,2.88314052,3278.1,3278.0,10.73436544]
[1720041843938,4.48225051,3278.1,3278.0,10.73436544]
[1720041845140,4.4820325,3278.1,3278.0,10.73436544]
[1720041845330,2.88314052,3278.1,3278.0,10.73436544]
[1720041845530,4.4820325,3278.1,3278.0,10.73436544]
[1720041846140,2.88314052,3278.1,3278.0,10.73436544]
[1720041847160,0.75990958,3278.1,3278.0,10.73436544]
[1720041847326,4.16184213,3278.1,3278.0,10.73436544]
[1720041847526,2.88314052,3278.1,3278.0,10.73436544]
[1720041848566,2.03900022,3278.1,3278.0,10.73436544]
[1720041848778,4.16223116,3278.1,3278.0,10.73436544]
[1720041849063,1.91863056,3278.5,3278.0,4.63308544]
[1720041849064,1.27909064,3278.3,3278.0,4.63308544]
[1720041849265,1.27909064,3278.3,3278.2,10.01135]
[1720041849567,2.35876838,3278.5,3278.3,6.10072]
[1720041849568,1.27909064,3278.4,3278.3,6.10072]
[1720041849743,3.40192319,3278.4,3278.3,6.96072]
[1720041850062,3.40192319,3278.4,3278.3,11.09353704]
[1720041850243,3.40192319,3278.4,3278.3,14.01613704]
[1720041850565,0.75990958,3278.5,3278.4,9.15078]
[1720041850566,2.03900022,3278.5,3278.4,9.15078]
[1720041850767,2.88263227,3278.5,3278.4,9.15078]
[1720041850971,1.71872553,3278.5,3278.4,9.15078]
[1720041851129,1.71872553,3278.5,3278.4,9.18574944]
[1720041851464,1.71872553,3278.5,3278.4,10.58732917]
[1720041852532,0.75990958,3278.5,3278.4,10.58732917]
[1720041853432,1.71872553,3278.5,3278.4,10.58732917]
[1720041854369,0.75990958,3278.5,3278.4,10.58732917]
[1720041854876,0.95881595,3278.6,3278.5,9.15051]
[1720041855180,0.95881595,3278.6,3278.5,11.5522207]
[1720041855465,1.71872553,3278.6,3278.5,11.58707884]
[1720041855672,1.71872553,3278.6,3278.5,10.72707884]
[1720041855964,1.71872553,3278.6,3278.5,11.58707884]
[1720041856540,0.75990958,3278.6,3278.5,11.58707884]
[1720041856958,1.71872553,3278.6,3278.5,6.99519814]
[1720041857437,2.1227765,3278.6,3278.5,0.89485814]
[1720041857637,1.71765785,3278.6,3278.5,0.89485814]
[1720041857837,2.88269981,3278.6,3278.5,0.89485814]
[1720041858050,2.88269981,3278.6,3278.5,6.99519814]
[1720041858253,1.71765195,3278.6,3278.5,6.99519814]
[1720041858755,0.95774237,3278.6,3278.5,6.99519814]
[1720041858956,1.71765195,3278.6,3278.5,6.99519814]
[1720041863047,0.75990958,3278.6,3278.5,6.99519814]
[1720041863881,0.75990958,3278.6,3278.5,6.13519814]
[1720041864079,0.75990958,3278.6,3278.5,6.99519814]
[1720041864281,1.71765195,3278.6,3278.5,6.99519814]
[1720041870481,1.71847169,3278.6,3278.5,6.99519814]
[1720041872368,0.75990958,3278.6,3278.5,6.99519814]
[1720041872782,1.71891522,3278.6,3278.5,6.99519814]
[1720041873261,1.71891443,3278.6,3278.5,6.99519814]
[1720041873465,2.88253213,3278.6,3278.5,6.99519814]
[1720041874080,2.88253213,3278.6,3278.5,10.04536814]
[1720041874274,2.88253213,3278.6,3278.5,11.44690974]
[1720041876418,4.16120526,3278.6,3278.5,11.44690974]
[1720041876565,2.88253213,3278.6,3278.5,11.44690974]
[1720041877270,4.16120526,3278.6,3278.5,11.44690974]
[1720041877590,2.88253213,3278.6,3278.5,11.44690974]
[1720041879393,3.40129568,3278.6,3278.5,11.44690974]
[1720041879690,2.12262255,3278.6,3278.5,11.44690974]
[1720041880389,2.12253327,3278.6,3278.5,11.14764174]
[1720041880697,1.27867313,3278.7,3278.6,3.05008]
[1720041881289,3.40119938,3278.7,3278.6,3.08354567]
[1720041882265,3.40119938,3278.7,3278.6,9.18370567]
[1720041882819,3.40240233,3278.7,3278.6,9.18370567]
[1720041883166,0.95987589,3278.7,3278.6,9.18370567]
[1720041883471,1.27987608,3278.9,3278.7,6.03128]
[1720041883793,3.40229286,3278.9,3278.8,9.14967]
[1720041883997,3.40229286,3278.9,3278.8,9.7329966]
[1720041884158,1.27987608,3279.0,3278.9,9.1494]
[1720041884363,1.27987608,3279.1,3279.0,10.00913]
[1720041884591,3.40215707,3279.1,3279.0,10.00913]
[1720041884892,3.40215707,3279.1,3279.0,11.29265119]
[1720041885094,3.40215707,3279.1,3279.0,14.82395119]
[1720041885260,2.12228099,3279.1,3279.0,14.82395119]
[1720041885993,0.75990958,3279.2,3279.1,9.14883]
[1720041886194,1.71961378,3279.2,3279.1,11.23616612]
[1720041886394,1.71961378,3279.2,3279.1,14.23616612]
[1720041886596,1.71961378,3279.2,3279.1,14.26949272]
[1720041886765,0.9597042,3279.2,3279.1,14.81949272]
[1720041887095,0.9597042,3279.3,3279.2,9.14856]
[1720041887393,0.9597042,3279.3,3279.2,13.55856]
[1720041887777,0.9597042,3279.3,3279.2,13.5918866]
[1720041887978,0.9597042,3279.3,3279.2,15.88792933]
[1720041889568,1.71961378,3279.4,3279.3,9.14829]
[1720041889876,1.71961378,3279.4,3279.3,9.69829]
[1720041890078,1.71961378,3279.4,3279.3,9.7316166]
[1720041891481,0.9597042,3279.4,3279.3,9.7316166]
[1720041891677,0.9597042,3279.4,3279.3,11.32038253]
[1720041892590,2.03978566,3279.6,3279.4,3.04933]
[1720041892794,2.03978566,3279.6,3279.4,9.20897057]
[1720041892795,0.95884484,3279.5,3279.4,9.20897057]
[1720041892973,0.95884484,3279.5,3279.4,10.00799]
[1720041893172,0.95884484,3279.5,3279.4,10.0413166]
[1720041894069,2.03829936,3279.6,3279.5,6.09848]
[1720041894263,4.16030382,3279.6,3279.5,6.09848]
[1720041894563,4.16030382,3279.6,3279.5,6.1315603]
[1720041896498,4.16030382,3279.6,3279.5,10.78988933]
[1720041896499,2.88191404,3279.6,3279.5,10.78988933]
[1720041897603,1.71841305,3279.6,3279.5,13.70378933]
[1720041898270,0.75990958,3279.6,3279.5,13.70378933]
[1720041898470,1.71839241,3279.6,3279.5,13.70378933]
[1720041900610,0.75990958,3279.6,3279.5,3.0823203]
[1720041900907,4.35418978,3279.6,3279.5,6.1315603]
[1720041901074,4.35418978,3279.6,3279.5,3.0823203]
[1720041901075,7.5550032,3279.6,3279.5,3.0823203]
[1720041901270,7.5550032,3279.6,3279.5,3.9423203]
[1720041901271,6.39315116,3279.6,3279.5,3.9423203]
[1720041903291,7.99042218,3279.6,3279.5,3.9423203]
[1720041903488,7.99042218,3279.6,3279.5,0.0330803]
[1720041903699,7.99042218,3279.6,3279.5,0.8930803]
[1720041904028,7.99049757,3279.6,3279.5,0.0330803]
[1720041904311,7.99049757,3279.6,3279.5,3.9423203]
[1720041904312,5.95773218,3279.6,3279.5,3.9423203]
[1720041904629,7.55507859,3279.6,3279.5,3.9423203]
[1720041904918,5.95773218,3279.6,3279.5,3.9423203]
[1720041905391,7.55507859,3279.6,3279.5,3.9423203]
[1720041907213,7.5552848,3279.6,3279.5,3.9423203]
[1720041908910,5.95773218,3279.6,3279.5,3.9423203]
[1720041911596,5.95773218,3279.6,3279.5,0.0330803]
[1720041912004,5.95773218,3279.6,3279.5,0.8930803]
[1720041912810,5.95773218,3279.6,3279.5,0.0330803]
[1720041913011,5.95773218,3279.6,3279.5,0.8930803]
[1720041913718,5.95773218,3279.6,3279.5,3.9423203]
[1720041914095,5.95773218,3279.6,3279.5,0.0330803]
[1720041914299,5.95773218,3279.6,3279.5,0.8930803]
[1720041915383,8.44926713,3279.6,3279.5,0.8930803]
[1720041919124,10.36784396,3279.6,3279.5,0.8930803]
[1720041919497,10.36851548,3279.6,3279.5,0.8930803]
[1720041920600,10.89652159,3279.6,3279.5,0.0330803]
[1720041920925,8.97727324,3279.6,3279.5,0.8930803]
[1720041921098,8.97727324,3279.6,3279.5,0.0330803]
[1720041921298,11.42953812,3279.6,3279.5,0.8930803]
[1720041921491,11.42953812,3279.6,3279.5,0.86]
[1720041921822,11.42953812,3279.6,3279.5,0.89175326]
[1720041922502,11.42953812,3279.6,3279.5,0.03175326]
[1720041922732,11.42957621,3279.6,3279.5,0.89175326]
[1720041923032,11.42957621,3279.6,3279.5,0.86]
[1720041923197,11.42956669,3279.6,3279.5,0.89175326]
[1720041923708,13.66993801,3279.6,3279.5,0.89175326]
[1720041924327,8.35376669,3279.6,3279.5,0.03175326]
[1720041924510,11.51826669,3279.6,3279.5,0.03175326]
[1720041924708,11.51826669,3279.6,3279.3,0.86]
[1720041924937,3.00088959,3279.4,3279.3,0.86]
[1720041925139,9.50795631,3279.4,3279.3,0.86]
[1720041925340,0.75990958,3278.9,3278.8,3.04983]
[1720041925548,2.88193218,3278.9,3278.8,6.90983]
[1720041925942,4.80290459,3278.9,3278.8,0.86]
[1720041926248,4.80298784,3278.9,3278.8,0.86]
[1720041926543,7.32676452,3278.9,3278.8,0.86]
[1720041927636,7.32676452,3278.9,3278.8,3.90989]
[1720041927830,5.40570886,3278.9,3278.8,3.90989]
[1720041930548,2.88193218,3278.9,3278.8,3.90989]
[1720041932841,2.88193218,3278.9,3278.8,3.04989]
[1720041933036,2.88193218,3278.9,3278.8,3.90989]
[1720041934821,2.88193218,3278.9,3278.8,3.94184586]
[1720041936723,2.88193218,3278.9,3278.8,3.08184586]
[1720041936925,2.88193218,3278.9,3278.8,3.94184586]
[1720041937134,2.88193218,3278.9,3278.8,3.08184586]
[1720041937455,2.88193218,3278.9,3278.8,3.68154186]
[1720041942358,2.88193218,3278.9,3278.8,0.89195586]
[1720041942963,2.88193218,3278.9,3278.8,3.94184586]
[1720041943163,2.1220226,3278.9,3278.8,4.64102745]
[1720041943485,2.1220226,3278.9,3278.8,7.69091745]
[1720041944380,2.1220226,3278.9,3278.8,6.99173586]
[1720041946445,2.1220226,3278.9,3278.8,10.04162586]
[1720041950099,3.72205167,3278.9,3278.8,10.04162586]
[1720041950796,3.72212046,3278.9,3278.8,10.04162586]
[1720041952473,2.1220226,3278.9,3278.8,10.04162586]
[1720041952793,3.7223679,3278.9,3278.8,10.04162586]
[1720041953366,2.1220226,3278.9,3278.8,10.04162586]
[1720041953570,2.1220226,3278.9,3278.8,11.67942761]
[1720041953775,2.1220226,3278.9,3278.8,15.20052761]
[1720041954072,3.72277538,3278.9,3278.8,15.20052761]
[1720041954417,3.72277647,3278.9,3278.8,15.20052761]
[1720041954975,2.12235377,3278.9,3278.8,15.20052761]
[1720041956469,3.72277647,3278.9,3278.8,15.20052761]
[1720041957114,2.12235377,3278.9,3278.8,15.20052761]
[1720041957404,3.72306145,3278.9,3278.8,15.20052761]
[1720041957611,2.12235377,3278.9,3278.8,15.20052761]
[1720041958190,2.12235377,3278.9,3278.8,12.15272586]
[1720041958504,3.72306145,3278.9,3278.8,13.01272586]
[1720041958707,2.12235377,3278.9,3278.8,13.01272586]
[1720041961025,3.72353142,3278.9,3278.8,13.01272586]
[1720041961507,3.72363029,3278.9,3278.8,13.01272586]
[1720041962645,2.12235377,3278.9,3278.8,13.01272586]
[1720041962795,3.72376309,3278.9,3278.8,13.01272586]
[1720041963312,3.72376309,3278.9,3278.8,14.31399845]
[1720041963904,3.72387278,3278.9,3278.8,14.31399845]
[1720041964918,3.72401644,3278.9,3278.8,14.31399845]
[1720041965221,2.01014072,3278.9,3278.8,20.91388845]
[1720041965421,1.28126677,3278.9,3278.8,20.91388845]
[1720041965588,1.28126677,3279.0,3278.9,9.1494]
[1720041965788,1.28126677,3279.0,3278.9,15.65076185]
[1720041965993,1.28126677,3279.0,3278.9,15.68249525]
[1720041966304,1.28126677,3279.0,3278.9,18.73229525]
[1720041967396,1.28126677,3279.0,3278.9,21.65729525]
[1720041967906,1.28126677,3279.1,3279.0,9.14913]
[1720041968096,1.28126677,3279.1,3279.0,13.55913]
[1720041968298,1.28126677,3279.1,3279.0,13.5908634]
[1720041968698,1.28126677,3279.2,3279.1,12.19844]
[1720041968903,1.28126677,3279.2,3279.1,16.05844]
[1720041969132,1.28126677,3279.2,3279.1,19.1984974]
[1720041969926,1.60101626,3279.4,3279.2,6.09904]
[1720041970107,1.28056978,3279.3,3279.2,9.14856]
[1720041970321,1.28056978,3279.3,3279.2,16.5482134]
[1720041970715,1.28056978,3279.3,3279.2,13.4986934]
[1720041971052,1.28056978,3279.3,3279.2,15.70934714]
[1720041972145,2.36004419,3279.5,3279.4,9.14799]
[1720041972300,2.36004419,3279.5,3279.4,10.00799]
[1720041972649,2.35983189,3279.5,3279.4,10.00799]
[1720041972883,2.35983189,3279.5,3279.4,11.91237977]
[1720041973844,2.35983189,3279.5,3279.4,11.05237977]
[1720041974046,4.48181584,3279.5,3279.4,11.91237977]
[1720041975343,2.88189353,3279.5,3279.4,11.91237977]
[1720041976228,2.35946499,3279.5,3279.4,11.91237977]
[1720041976559,4.48144894,3279.5,3279.4,11.91237977]
[1720041976852,2.88189353,3279.5,3279.4,11.91237977]
[1720041977354,4.16134181,3279.5,3279.4,11.91237977]
[1720041977538,4.16132436,3279.5,3279.4,11.91237977]
[1720041979057,3.40141478,3279.5,3279.4,11.91237977]
[1720041979209,2.12198395,3279.5,3279.4,12.46237977]
[1720041979402,0.95936976,3279.5,3279.4,12.46237977]
[1720041979806,1.27943083,3279.6,3279.5,9.14772]
[1720041980050,3.4013222,3279.6,3279.5,10.69887098]
[1720041980250,3.4013222,3279.6,3279.5,10.73034224]
[1720041981304,2.12189137,3279.6,3279.5,10.73034224]
[1720041981706,3.4013222,3279.6,3279.5,10.73034224]
[1720041982330,2.12189137,3279.6,3279.5,10.73034224]
[1720041984327,2.12189137,3279.6,3279.5,10.54419724]
[1720041984722,0.95908104,3279.6,3279.5,13.30219724]
[1720041985107,2.03868071,3279.7,3279.6,9.14745]
[1720041985347,1.27877113,3279.7,3279.6,11.5287404]
[1720041985547,1.27877113,3279.7,3279.6,12.0787404]
[1720041985912,1.27877113,3279.8,3279.7,9.14715]
[1720041986113,3.40054313,3279.8,3279.7,10.03856964]
[1720041986316,2.03868071,3279.9,3279.8,9.14688]
[1720041986547,4.16040831,3279.9,3279.8,10.65960569]
[1720041986855,2.88163718,3279.9,3279.8,10.69101341]
[1720041987259,1.71875901,3279.9,3279.8,10.69101341]
[1720041987411,2.88163991,3279.9,3279.8,10.69101341]
[1720041987612,1.71880571,3279.9,3279.8,10.69101341]
[1720041990714,0.75990958,3279.9,3279.8,10.69101341]
[1720041990915,1.71865454,3279.9,3279.8,10.69101341]
[1720041992967,2.03823619,3279.9,3279.8,10.69101341]
[1720041993171,2.03823619,3279.9,3279.8,10.03828772]
[1720041993172,2.03828036,3279.9,3279.8,10.03828772]
[1720041993357,2.88159825,3279.9,3279.8,10.03828772]
[1720041993538,2.88159825,3279.9,3279.8,9.17828772]
[1720041994057,2.88159825,3279.9,3279.8,10.03828772]
[1720041997753,2.88159825,3279.9,3279.8,11.40203149]
[1720041997958,1.71880215,3279.9,3279.8,11.40203149]
[1720041998946,1.71880215,3279.9,3279.8,10.54203149]
[1720041999217,1.71880215,3279.9,3279.8,11.40203149]
[1720041999557,0.95889257,3279.9,3279.8,11.40203149]
[1720042000449,0.95889257,3279.9,3279.8,10.03828772]
[1720042001342,2.57e-06,3280.0,3279.9,12.19548]
[1720042001565,0.63933562,3280.0,3279.9,9.72713506]
[1720042001758,0.63933562,3280.1,3280.0,9.14634]
[1720042001978,0.95900935,3280.3,3280.1,3.04868]
[1720042001979,0.63928522,3280.2,3280.1,3.04868]
[1720042002186,0.63928522,3280.2,3280.1,14.43055644]
[1720042002479,0.63928522,3280.2,3280.1,17.29268899]
[1720042002694,0.63928522,3280.2,3280.1,17.3230989]
[1720042002879,0.95900935,3280.4,3280.1,17.3230989]
[1720042002880,0.18449548,3280.3,3280.2,12.19436]
[1720042003085,0.18449548,3280.3,3280.2,15.63663389]
[1720042003295,0.18449548,3280.3,3280.2,18.63663389]
[1720042003462,0.18449548,3280.3,3280.2,18.6670438]
[1720042005213,2.99819548,3280.3,3280.2,9.12758991]
[1720042005380,4.41208517,3280.3,3280.2,9.98758991]
[1720042005694,4.93524757,3280.3,3280.2,9.98758991]
[1720042006181,2.12154757,3280.3,3280.2,14.3398139]
[1720042006395,1.27837291,3280.3,3280.2,17.2344139]
[1720042006582,1.27837291,3280.3,3280.2,17.7844139]
[1720042006583,0.95872985,3280.3,3280.2,17.7844139]
[1720042006767,1.71863943,3280.4,3280.3,9.1455]
[1720042006966,0.75990958,3280.4,3280.3,6.12629303]
[1720042007165,4.15971922,3280.4,3280.3,6.98629303]
[1720042008195,2.88134631,3280.4,3280.3,6.98629303]
[1720042008596,4.4792294,3280.4,3280.3,6.98629303]
[1720042008796,2.88134631,3280.4,3280.3,6.98629303]
[1720042009009,4.4792294,3280.4,3280.3,6.98629303]
[1720042009605,2.88134631,3280.4,3280.3,6.98629303]
[1720042009919,4.47953954,3280.4,3280.3,6.98629303]
[1720042010082,4.47954147,3280.4,3280.3,6.98629303]
[1720042011780,4.47954147,3280.4,3280.3,6.12629303]
[1720042011982,4.47954147,3280.4,3280.3,6.98629303]
[1720042012678,4.47993274,3280.4,3280.3,6.98629303]
[1720042013113,4.47992668,3280.4,3280.3,6.98629303]
[1720042014511,2.88134631,3280.4,3280.3,6.98629303]
[1720042016017,2.88134631,3280.4,3280.3,6.12629303]
[1720042016319,2.88134631,3280.4,3280.3,6.98629303]
[1720042024535,2.88134631,3280.4,3280.3,8.28978833]
[1720042024720,2.88134631,3280.4,3280.3,14.23038833]
[1720042026553,0.80986169,3280.4,3280.3,20.27888833]
[1720042026720,0.75990958,3281.1,3281.0,6.0957]
[1720042026924,0.75990958,3281.1,3281.0,6.9557]
[1720042027116,0.75990958,3281.1,3281.0,6.98479454]
[1720042027317,3.50930958,3281.1,3281.0,6.12479454]
[1720042027515,3.50930958,3281.1,3281.0,6.98479454]
[1720042029053,0.75990958,3281.1,3281.0,6.98479454]
[1720042030047,0.75990958,3281.1,3281.0,6.12479454]
[1720042030254,0.75990958,3281.1,3281.0,6.98479454]
[1720042033763,3.9563493,3281.1,3281.0,6.98479454]
[1720042034265,3.9563493,3281.1,3281.0,7.98807499]
[1720042035733,6.07743925,3281.1,3281.0,7.98807499]
[1720042036460,4.47921957,3281.1,3281.0,7.98807499]
[1720042036664,6.07703699,3281.1,3281.0,7.98807499]
[1720042037564,8.56423699,3281.1,3281.0,0.02909454]
[1720042037781,0.75990958,3280.8,3280.7,3.04812]
[1720042037930,0.75990958,3280.8,3280.7,6.95624]
[1720042038140,2.88099953,3280.8,3280.7,6.95624]
[1720042038473,5.25135414,3280.8,3280.7,3.04812]
[1720042038672,2.91584877,3280.8,3280.7,3.90812]
[1720042039478,2.88099953,3280.8,3280.7,3.90812]
[1720042039678,2.88099953,3280.8,3280.7,3.93582403]
[1720042042800,2.88099953,3280.8,3280.7,3.07582403]
[1720042042947,2.88099953,3280.8,3280.7,3.93582403]
[1720042044465,5.21792113,3280.8,3280.7,3.93582403]
[1720042045665,2.88099953,3280.8,3280.7,3.93582403]
[1720042046571,5.25146207,3280.8,3280.7,3.93582403]
[1720042049100,9.4473948,3280.8,3280.7,3.93582403]
[1720042051103,6.41128522,3280.8,3280.7,6.98394403]
[1720042051407,6.41128522,3280.8,3280.7,7.58280898]
[1720042051408,4.80073226,3280.8,3280.7,7.58280898]
[1720042052174,4.80073226,3280.8,3280.7,6.72280898]
[1720042052397,2.88099953,3280.8,3280.7,7.58280898]
[1720042055406,2.88099953,3280.8,3280.7,10.63092898]
[1720042056078,4.48095523,3280.8,3280.7,10.63092898]
[1720042056274,4.48103345,3280.8,3280.7,10.63092898]
[1720042056698,4.4810537,3280.8,3280.7,10.63092898]
[1720042057506,4.4810537,3280.8,3280.7,10.37040798]
[1720042057875,2.88099953,3280.8,3280.7,10.37040798]
[1720042058110,4.48118235,3280.8,3280.7,10.37040798]
[1720042058284,2.88099953,3280.8,3280.7,10.37040798]
[1720042058687,4.4813265,3280.8,3280.7,10.37040798]
[1720042059481,2.88099953,3280.8,3280.7,10.37040798]
[1720042062640,4.48174765,3280.8,3280.7,10.37040798]
[1720042062935,3.72183807,3280.8,3280.7,10.37040798]
[1720042063180,2.12108995,3280.8,3280.7,10.37040798]
[1720042063467,2.12108995,3280.8,3280.7,10.92040798]
[1720042063838,3.40155947,3280.8,3280.7,10.92040798]
[1720042064054,2.12108995,3280.8,3280.7,10.92040798]
[1720042064238,3.40156581,3280.8,3280.7,10.92040798]
[1720042064922,2.12108995,3280.8,3280.7,13.92040798]
[1720042065121,3.40153007,3280.8,3280.7,13.92040798]
[1720042065941,3.40153007,3280.8,3280.7,16.19980798]
[1720042066141,3.40153007,3280.8,3280.7,22.46492798]
[1720042066142,2.12108995,3280.8,3280.7,22.46492798]
[1720042066341,1.28044012,3280.9,3280.8,12.19212]
[1720042066551,3.40136132,3280.9,3280.8,20.5727888]
[1720042066726,3.40136132,3280.9,3280.8,20.59958181]
[1720042067631,3.40136132,3280.9,3280.8,20.60905416]
[1720042068032,2.50649859,3280.9,3280.8,20.60905416]
[1720042068644,0.96002966,3280.9,3280.8,20.60905416]
[1720042069157,0.96002966,3280.9,3280.8,20.5727888]
[1720042069338,0.75990958,3281.4,3281.3,6.09514]
[1720042069539,2.88073473,3281.4,3281.3,6.09514]
[1720042070067,7.20506544,3281.4,3281.3,6.95514]
[1720042070236,9.53577716,3281.4,3281.3,6.95514]
[1720042070954,7.61574645,3281.4,3281.3,6.95514]
[1720042072831,7.1314786,3281.4,3281.3,6.95514]
[1720042074433,7.1314786,3281.4,3281.3,6.09514]
[1720042074597,7.1314786,3281.4,3281.3,6.95514]